bitfinex-derivatives/quotes_BTCF0:USTF0_20250417
["timestamp","ask_amount","ask_price","bid_price","bid_amount"]
[1744893308011,0.18250824,84900.0,84899.0,0.3397799]
[1744893308211,0.18258824,84900.0,84899.0,0.3397799]
[1744893308515,0.54338824,84900.0,84899.0,0.0742]
[1744893308707,0.54338824,84900.0,84899.0,0.1920199]
[1744893308907,0.54438824,84900.0,84899.0,0.1920199]
[1744893309107,0.69228824,84900.0,84899.0,0.1920199]
[1744893309712,0.69228824,84900.0,84899.0,0.0742]
[1744893310812,0.69228824,84900.0,84899.0,0.1920199]
[1744893312514,0.1178227,84897.0,84896.0,0.02]
[1744893312716,0.1767341,84897.0,84894.0,0.073]
[1744893312910,0.1178255,84895.0,84894.0,0.1908257]
[1744893313313,0.2559255,84895.0,84894.0,0.1908257]
[1744893315121,0.1178311,84891.0,84890.0,0.02]
[1744893315421,0.1178324,84890.0,84889.0,0.06]
[1744893315615,0.3196324,84890.0,84889.0,0.06]
[1744893316008,0.117838,84886.0,84885.0,0.0964]
[1744893316210,0.478638,84886.0,84885.0,0.0764]
[1744893316419,0.598738,84886.0,84885.0,0.0764]
[1744893317215,0.598738,84886.0,84884.0,0.06]
[1744893317216,0.1178394,84885.0,84884.0,0.06]
[1744893317418,0.0589167,84890.0,84889.0,0.1767492]
[1744893317619,0.0609,84895.0,84894.0,0.1178269]
[1744893318321,0.42178,84895.0,84894.0,0.2342269]
[1744893318523,0.5396055,84895.0,84894.0,0.2342269]
[1744893319024,0.5988055,84895.0,84894.0,0.2342269]
[1744893319815,0.2380055,84895.0,84894.0,0.2342269]
[1744893320121,0.5988055,84895.0,84894.0,0.2352269]
[1744893321924,0.1179055,84895.0,84894.0,0.2352269]
[1744893323221,0.4787055,84895.0,84894.0,0.1174]
[1744893323417,0.4786255,84895.0,84894.0,0.0609]
[1744893323626,0.5950055,84895.0,84894.0,0.0609]
[1744893324926,0.6050055,84895.0,84894.0,0.0609]
[1744893326614,0.1178297,84892.0,84891.0,0.02]
[1744893326923,0.1178338,84889.0,84888.0,0.02]
[1744893327119,0.1178366,84887.0,84886.0,0.0616]
[1744893327322,0.1178408,84884.0,84883.0,0.02]
[1744893327520,0.1178449,84881.0,84880.0,0.02]
[1744893327724,0.1178449,84881.0,84877.0,0.19950112]
[1744893327725,0.1178491,84878.0,84877.0,0.19950112]
[1744893327929,0.1478491,84878.0,84877.0,0.17950112]
[1744893328126,0.1478491,84878.0,84875.0,0.00017673]
[1744893328127,0.1178519,84876.0,84875.0,0.00906428]
[1744893328431,0.1578519,84876.0,84875.0,0.00906428]
[1744893328622,0.2817519,84876.0,84875.0,0.00017673]
[1744893328922,0.2817519,84876.0,84875.0,3e-08]
[1744893329320,0.2817519,84876.0,84864.0,0.0602]
[1744893329321,0.1178672,84865.0,84864.0,0.0602]
[1744893329621,0.1178672,84865.0,84860.0,0.23917513]
[1744893329622,0.1178727,84861.0,84860.0,0.23917513]
[1744893329821,0.1378727,84861.0,84860.0,0.23917513]
[1744893330013,0.2617727,84861.0,84860.0,0.23917513]
[1744893330222,0.2617727,84861.0,84860.0,0.248106]
[1744893330419,0.3273727,84861.0,84860.0,0.248106]
[1744893330939,0.3273727,84861.0,84860.0,0.251106]
[1744893331437,0.3273727,84861.0,84860.0,0.252106]
[1744893332625,0.4473727,84861.0,84860.0,0.21131953]
[1744893333823,0.4473727,84861.0,84860.0,0.004]
[1744893334125,0.4474527,84861.0,84860.0,0.004]
[1744893338430,0.8082527,84861.0,84860.0,0.004]
[1744893341821,0.8082527,84861.0,84860.0,0.0606]
[1744893342022,0.8082527,84861.0,84860.0,0.004]
[1744893343120,0.8082527,84861.0,84856.0,1e-07]
[1744893343121,0.69038,84861.0,84856.0,1e-07]
[1744893343326,0.07592,84860.0,84838.0,0.1809047]
[1744893343529,0.4787033,84839.0,84838.0,0.063]
[1744893343727,0.4987033,84839.0,84838.0,0.063]
[1744893344538,0.4987033,84839.0,84838.0,0.0749923]
[1744893345129,0.4987033,84839.0,84838.0,0.0819923]
[1744893345338,0.5596033,84839.0,84838.0,0.0819923]
[1744893345637,0.5596033,84839.0,84838.0,0.0969241]
[1744893346428,0.5596033,84839.0,84838.0,0.1019241]
[1744893347936,0.6101033,84839.0,84838.0,0.0869923]
[1744893348133,0.6101033,84839.0,84838.0,0.0239923]
[1744893348134,0.9709033,84839.0,84838.0,0.0239923]
[1744893348338,0.0589558,84833.0,84830.0,0.00017673]
[1744893348535,0.4787144,84831.0,84830.0,0.00017673]
[1744893348831,0.4987144,84831.0,84830.0,0.00017673]
[1744893349033,0.6021144,84831.0,84830.0,0.00017673]
[1744893349826,0.6021144,84831.0,84830.0,0.01117673]
[1744893350636,0.1179505,84806.0,84805.0,0.0589745]
[1744893350828,0.0789746,84806.0,84805.0,0.1685502]
[1744893351025,0.02,84806.0,84805.0,0.18312664]
[1744893351540,0.02,84806.0,84805.0,0.23342664]
[1744893351747,0.02,84806.0,84805.0,0.48342664]
[1744893351930,0.021,84806.0,84805.0,0.49542664]
[1744893352233,0.02108,84806.0,84805.0,0.50438753]
[1744893352635,0.02108,84806.0,84805.0,0.25438753]
[1744893353741,0.02208,84806.0,84805.0,0.26138753]
[1744893355433,0.02208,84806.0,84805.0,0.62218753]
[1744893356745,0.1400292,84806.0,84805.0,0.26138753]
[1744893357053,0.1400292,84806.0,84805.0,0.07826089]
[1744893357236,0.2396292,84806.0,84805.0,0.07826089]
[1744893357435,0.2396292,84806.0,84805.0,0.19621139]
[1744893357635,0.2074094,84806.0,84805.0,0.21089417]
[1744893357835,0.2274094,84806.0,84805.0,0.21089417]
[1744893358339,0.2274094,84806.0,84805.0,0.20789417]
[1744893358645,0.2284094,84806.0,84805.0,0.19889417]
[1744893359242,0.021,84806.0,84805.0,0.24959417]
[1744893360245,0.02108,84806.0,84805.0,0.24959417]
[1744893360452,0.021,84806.0,84805.0,0.24959417]
[1744893360639,0.02108,84806.0,84805.0,0.24959417]
[1744893360951,0.021,84806.0,84805.0,0.24959417]
[1744893361134,0.02108,84806.0,84805.0,0.24959417]
[1744893361337,0.00017684,84814.0,84813.0,0.1179394]
[1744893361533,0.11811484,84814.0,84813.0,0.1179394]
[1744893361741,0.11811484,84814.0,84813.0,0.2693394]
[1744893362142,0.16971484,84814.0,84813.0,0.2693394]
[1744893362639,0.16971484,84814.0,84813.0,0.2733394]
[1744893363247,0.00017684,84814.0,84813.0,0.2763394]
[1744893363750,0.11819484,84814.0,84813.0,0.2763394]
[1744893364552,0.00025684,84814.0,84813.0,0.2763394]
[1744893364945,0.00017684,84814.0,84813.0,0.2763394]
[1744893365151,0.00025684,84814.0,84813.0,0.2763394]
[1744893365650,0.11819484,84814.0,84813.0,0.2763394]
[1744893366051,0.21609484,84814.0,84813.0,0.2763394]
[1744893367451,0.21609484,84814.0,84813.0,0.007]
[1744893367755,0.62809484,84814.0,84813.0,0.007]
[1744893367957,0.62809484,84814.0,84813.0,0.1249394]
[1744893368253,0.62809484,84814.0,84813.0,0.007]
[1744893370054,0.1179436,84810.0,84809.0,0.02]
[1744893370243,0.0589725,84809.0,84805.0,0.02896089]
[1744893370555,0.1769272,84805.0,84804.0,0.1179518]
[1744893370956,0.2804272,84805.0,84804.0,0.1179518]
[1744893371455,0.1179533,84803.0,84802.0,0.1769308]
[1744893371657,0.1179533,84803.0,84802.0,0.20065203]
[1744893371955,0.2726533,84803.0,84802.0,0.20065203]
[1744893372958,0.2736533,84803.0,84802.0,0.20665203]
[1744893373856,0.2736533,84803.0,84802.0,0.20965203]
[1744893375155,0.2221533,84803.0,84802.0,0.20965203]
[1744893375354,0.1042,84803.0,84802.0,0.20965203]
[1744893375554,0.0529,84803.0,84802.0,0.20965203]
[1744893375765,0.00108,84803.0,84802.0,0.20965203]
[1744893375955,0.1189533,84803.0,84802.0,0.20965203]
[1744893376155,0.1190333,84803.0,84802.0,0.20965203]
[1744893377763,0.2128333,84803.0,84802.0,0.20965203]
[1744893380657,0.2128333,84803.0,84802.0,0.03272123]
[1744893380861,0.2128333,84803.0,84802.0,0.15067593]
[1744893382256,0.2128333,84803.0,84802.0,0.03272123]
[1744893382457,0.2128333,84803.0,84802.0,0.15067593]
[1744893383550,0.2128333,84803.0,84802.0,0.01781569]
[1744893383951,0.2128333,84803.0,84802.0,0.009]
[1744893385059,0.2128333,84803.0,84802.0,0.008]
[1744893385357,0.2128333,84803.0,84802.0,0.009]
[1744893388260,0.2128333,84803.0,84802.0,0.1269547]
[1744893388750,0.2128333,84803.0,84802.0,0.1746547]
[1744893388956,0.2127533,84803.0,84802.0,0.1746547]
[1744893389151,0.2128333,84803.0,84802.0,0.1746547]
[1744893392261,0.2128333,84803.0,84802.0,0.2219547]
[1744893392966,0.1682333,84803.0,84802.0,0.2219547]
[1744893393155,0.00108,84803.0,84802.0,0.2219547]
[1744893393358,0.00108,84803.0,84802.0,0.2978347]
[1744893393857,0.1190333,84803.0,84802.0,0.2978347]
[1744893394059,0.1189533,84803.0,84802.0,0.2978347]
[1744893394366,0.1190333,84803.0,84802.0,0.2978347]
[1744893403474,0.1651333,84803.0,84802.0,0.2978347]
[1744893406071,0.1190333,84803.0,84802.0,0.2978347]
[1744893406377,0.00108,84803.0,84802.0,0.2978347]
[1744893406568,0.1190333,84803.0,84802.0,0.2978347]
[1744893407375,0.00108,84803.0,84802.0,0.2978347]
[1744893407573,0.1190333,84803.0,84802.0,0.2978347]
[1744893409581,0.0485,84805.0,84804.0,0.1179519]
[1744893409767,0.0485,84810.0,84809.0,0.117945]
[1744893409965,0.1061687,84815.0,84810.0,0.1179436]
[1744893410168,0.11805021,84811.0,84810.0,0.1179436]
[1744893410369,0.1179422,84811.0,84810.0,0.2116436]
[1744893410979,0.1180222,84811.0,84810.0,0.2116436]
[1744893411379,0.1663222,84811.0,84810.0,0.2116436]
[1744893411582,0.1663222,84811.0,84810.0,0.2146436]
[1744893411781,0.2130222,84811.0,84810.0,0.2176436]
[1744893411980,0.2130222,84811.0,84810.0,0.2930836]
[1744893416485,0.2130222,84811.0,84810.0,0.2478836]
[1744893416686,0.2585222,84811.0,84810.0,0.2478836]
[1744893418686,0.2585222,84811.0,84810.0,0.2932836]
[1744893419075,0.2585222,84811.0,84810.0,0.2478836]
[1744893425991,8e-05,84811.0,84810.0,0.2478836]
[1744893426190,8e-05,84811.0,84810.0,0.2931836]
[1744893426391,8e-05,84811.0,84810.0,0.2177436]
[1744893426597,0.20853783,84831.0,84824.0,0.1179241]
[1744893426889,0.0486,84829.0,84828.0,0.1179186]
[1744893427081,0.1665172,84829.0,84828.0,0.17733851]
[1744893427288,0.2110172,84829.0,84828.0,0.26663851]
[1744893427677,0.0931,84829.0,84828.0,0.26663851]
[1744893428081,0.2110172,84829.0,84828.0,0.26663851]
[1744893428280,0.2130172,84829.0,84828.0,0.26663851]
[1744893428683,0.2130172,84829.0,84826.0,0.02]
[1744893428684,0.11792,84827.0,84826.0,0.02]
[1744893428888,0.1179241,84824.0,84823.0,0.02]
[1744893429090,0.1179269,84822.0,84821.0,0.20763543]
[1744893429492,0.2121269,84822.0,84821.0,0.20763543]
[1744893430587,0.2121269,84822.0,84821.0,0.07544]
[1744893430793,0.2710903,84822.0,84820.0,0.2402105]
[1744893430987,0.2710903,84822.0,84821.0,0.001]
[1744893431193,0.2710903,84822.0,84821.0,0.002]
[1744893431695,0.2710903,84822.0,84821.0,0.1189283]
[1744893432690,0.2710903,84822.0,84821.0,0.1179283]
[1744893432895,0.2710903,84822.0,84821.0,0.1189283]
[1744893434698,0.2710903,84822.0,84821.0,0.001]
[1744893434901,0.2710903,84822.0,84821.0,0.1189283]
[1744893437102,0.6318903,84822.0,84821.0,0.1189283]
[1744893437496,0.1179464,84808.0,84807.0,0.1013738]
[1744893437704,0.4987464,84808.0,84807.0,0.176919]
[1744893437904,0.1379464,84808.0,84807.0,0.176919]
[1744893438103,0.1379464,84808.0,84807.0,0.19106978]
[1744893438303,0.2257464,84808.0,84807.0,0.19106978]
[1744893439107,0.02,84808.0,84807.0,0.19106978]
[1744893439406,0.02008,84808.0,84807.0,0.28196978]
[1744893439796,0.1380264,84808.0,84807.0,0.28196978]
[1744893439996,0.1390264,84808.0,84807.0,0.28596978]
[1744893440199,0.1834264,84808.0,84807.0,0.28596978]
[1744893440403,0.2268264,84808.0,84807.0,0.28596978]
[1744893441292,0.10888,84808.0,84807.0,0.28596978]
[1744893441704,0.06548,84808.0,84807.0,0.32836978]
[1744893442108,0.1834264,84808.0,84807.0,0.32836978]
[1744893442297,0.02108,84808.0,84807.0,0.32836978]
[1744893444405,0.1390264,84808.0,84807.0,0.13899078]
[1744893444598,0.1390264,84808.0,84807.0,0.06355078]
[1744893444806,0.2288264,84808.0,84807.0,0.13899078]
[1744893445103,0.2288264,84808.0,84807.0,0.25693858]
[1744893448813,0.2288264,84808.0,84807.0,0.18149858]
[1744893449012,0.2288264,84808.0,84807.0,0.25693858]
[1744893449612,0.2288264,84808.0,84807.0,0.18149858]
[1744893450316,0.2288264,84808.0,84807.0,0.13909858]
[1744893452317,0.2288264,84808.0,84807.0,0.02115078]
[1744893453216,0.1769335,84802.0,84801.0,0.1179551]
[1744893453514,0.1969335,84802.0,84801.0,0.1179551]
[1744893453911,0.1179561,84801.0,84800.0,0.001]
[1744893454213,0.2265561,84801.0,84800.0,0.001]
[1744893456313,0.2275561,84801.0,84800.0,0.007]
[1744893456519,0.2275561,84801.0,84800.0,0.009]
[1744893456915,0.3475561,84801.0,84800.0,0.009]
[1744893457121,0.2275561,84801.0,84800.0,0.009]
[1744893457522,0.0589814,84797.0,84794.0,0.00874108]
[1744893457728,0.1179756,84787.0,84786.0,0.01388515]
[1744893457927,0.4987756,84787.0,84786.0,0.117977]
[1744893458127,0.4987756,84787.0,84786.0,0.17435748]
[1744893458128,0.2265756,84787.0,84786.0,0.17435748]
[1744893458517,0.2265756,84787.0,84786.0,0.0424]
[1744893459328,0.2275756,84787.0,84786.0,0.0464]
[1744893459527,0.2275756,84787.0,84786.0,0.05519507]
[1744893459728,0.2275756,84787.0,84786.0,0.17317207]
[1744893461330,0.2275756,84787.0,84786.0,0.25947207]
[1744893461532,0.2276556,84787.0,84786.0,0.25947207]
[1744893461730,0.02108,84787.0,84786.0,0.25947207]
[1744893461927,0.021,84787.0,84786.0,0.25947207]
[1744893462130,0.1390556,84787.0,84786.0,0.25947207]
[1744893462931,0.1389756,84787.0,84786.0,0.25947207]
[1744893463132,0.1390556,84787.0,84786.0,0.25947207]
[1744893465430,0.2287556,84787.0,84786.0,0.25947207]
[1744893470026,0.2287556,84787.0,84786.0,0.05519507]
[1744893470536,0.2287556,84787.0,84786.0,0.17317207]
[1744893471741,0.2287556,84787.0,84786.0,0.13077207]
[1744893472638,0.2287556,84787.0,84786.0,0.17587207]
[1744893477337,0.2287556,84787.0,84786.0,0.22137207]
[1744893477837,0.1107,84787.0,84786.0,0.22137207]
[1744893478035,0.1389756,84787.0,84786.0,0.26697207]
[1744893478243,0.1390556,84787.0,84786.0,0.26697207]
[1744893478631,0.1389756,84787.0,84786.0,0.26697207]
[1744893478836,0.1390556,84787.0,84786.0,0.26697207]
[1744893479032,0.02108,84787.0,84786.0,0.26697207]
[1744893479648,0.1390556,84787.0,84786.0,0.26697207]
[1744893480643,0.1862556,84787.0,84786.0,0.26697207]
[1744893481034,0.06828,84787.0,84786.0,0.26697207]
[1744893481748,0.00017684,84795.0,84791.0,0.11797]
[1744893481937,0.02,84792.0,84791.0,0.20467]
[1744893482138,0.1380486,84792.0,84791.0,0.20467]
[1744893482646,0.2262486,84792.0,84791.0,0.20467]
[1744893482950,0.2262486,84792.0,84791.0,0.0442]
[1744893483141,0.2262486,84792.0,84791.0,0.16217]
[1744893484250,0.2262486,84792.0,84791.0,0.11797]
[1744893484448,0.2272486,84792.0,84791.0,0.12097]
[1744893485144,0.2272486,84792.0,84791.0,0.16387]
[1744893487740,0.2272486,84792.0,84791.0,0.12097]
[1744893490744,0.2272486,84792.0,84791.0,0.003]
[1744893490944,0.2272486,84792.0,84791.0,0.12097]
[1744893491948,0.2272486,84792.0,84791.0,0.003]
[1744893492348,0.2272486,84792.0,84791.0,0.12097]
[1744893495056,0.2272486,84792.0,84791.0,0.003]
[1744893496656,0.5072486,84792.0,84791.0,0.003]
[1744893496860,0.2272486,84792.0,84791.0,0.003]
[1744893497153,0.4672486,84792.0,84791.0,0.003]
[1744893501361,0.4672486,84792.0,84791.0,0.12097]
[1744893502855,0.2272486,84792.0,84791.0,0.12097]
[1744893503156,0.2272486,84792.0,84791.0,0.003]
[1744893503358,0.5880486,84792.0,84791.0,0.003]
[1744893503853,0.5880486,84792.0,84791.0,0.0482]
[1744893504065,0.5880486,84792.0,84791.0,0.16617]
[1744893506359,0.5880486,84792.0,84791.0,0.0482]
[1744893506559,0.6330486,84792.0,84791.0,0.0482]
[1744893508659,0.6330486,84792.0,84791.0,0.16617]
[1744893509261,0.6330486,84792.0,84791.0,0.0482]
[1744893509657,0.6330486,84792.0,84791.0,0.16617]
[1744893512659,0.6330486,84792.0,84791.0,0.0482]
[1744893512863,0.8830486,84792.0,84791.0,0.0482]
[1744893513051,0.11797,84791.0,84790.0,0.02]
[1744893513255,0.1179714,84790.0,84789.0,0.02]
[1744893513463,0.1179742,84788.0,84787.0,0.1635753]
[1744893513666,0.1379742,84788.0,84787.0,0.1635753]
[1744893513868,0.2261742,84788.0,84787.0,0.1635753]
[1744893514557,0.2271742,84788.0,84787.0,0.2122753]
[1744893519669,0.5879742,84788.0,84787.0,0.2122753]
[1744893530368,0.5879742,84788.0,84787.0,0.0943]
[1744893530569,0.5879742,84788.0,84787.0,0.0506]
[1744893531478,0.5879742,84788.0,84787.0,0.1685756]
[1744893532278,0.2271742,84788.0,84787.0,0.1685756]
[1744893532478,0.5879742,84788.0,84787.0,0.1685756]
[1744893534187,0.5879742,84788.0,84787.0,0.0506]
[1744893534682,0.5879742,84788.0,84787.0,0.005]
[1744893534985,0.1179965,84772.0,84767.0,0.044]
[1744893535285,0.8595965,84772.0,84767.0,0.044]
[1744893535485,0.6312965,84772.0,84768.0,0.01330425]
[1744893535878,0.6313765,84772.0,84768.0,0.01330425]
[1744893536076,0.6313765,84772.0,84770.0,0.0089082]
[1744893536986,0.6323765,84772.0,84770.0,0.0089082]
[1744893537877,0.6323765,84772.0,84770.0,0.0542082]
[1744893538079,0.7623765,84772.0,84763.0,0.29894153]
[1744893538278,0.6323765,84772.0,84771.0,0.00507246]
[1744893538480,0.8823765,84772.0,84771.0,0.00507246]
[1744893538679,0.6323765,84772.0,84771.0,0.00507246]
[1744893544398,0.5870965,84772.0,84771.0,0.12307036]
[1744893544691,0.1389965,84772.0,84771.0,0.12307036]
[1744893544892,0.1389965,84772.0,84771.0,0.20997036]
[1744893545290,0.1390765,84772.0,84771.0,0.20997036]
[1744893545493,0.1389965,84772.0,84771.0,0.20997036]
[1744893545691,0.1390765,84772.0,84771.0,0.20997036]
[1744893548292,0.02108,84772.0,84771.0,0.45997036]
[1744893548498,0.3608,84777.0,84776.0,0.1179909]
[1744893548683,0.3708,84777.0,84776.0,0.1179909]
[1744893548989,0.3708,84777.0,84776.0,0.2526909]
[1744893549594,0.1279895,84777.0,84776.0,0.0434]
[1744893550095,0.2173895,84777.0,84776.0,0.0434]
[1744893550280,0.2183895,84777.0,84776.0,0.0434]
[1744893550781,0.2183895,84777.0,84776.0,0.1613909]
[1744893552192,0.2183895,84777.0,84776.0,0.1179909]
[1744893552584,0.2183895,84777.0,84776.0,0.1618909]
[1744893553687,0.5791895,84777.0,84776.0,0.0439]
[1744893554783,0.5791895,84777.0,84776.0,0.1618909]
[1744893555191,0.5792695,84777.0,84776.0,0.1618909]
[1744893555391,0.2183895,84777.0,84776.0,0.1618909]
[1744893555591,0.2184695,84777.0,84776.0,0.1618909]
[1744893556203,0.5792695,84777.0,84776.0,0.1618909]
[1744893558297,0.5792695,84777.0,84776.0,0.0439]
[1744893558996,0.1179951,84773.0,84772.0,0.02]
[1744893559190,0.1379951,84773.0,84772.0,0.0457]
[1744893559492,0.2217951,84773.0,84772.0,0.0457]
[1744893559892,0.1179965,84772.0,84771.0,0.00507246]
[1744893560195,0.1379965,84772.0,84771.0,0.00507246]
[1744893560396,0.2250965,84772.0,84771.0,0.00507246]
[1744893561703,0.5150965,84772.0,84771.0,0.00507246]
[1744893561915,0.2250965,84772.0,84771.0,0.00507246]
[1744893562900,0.118002,84768.0,84767.0,0.02]
[1744893563099,0.118002,84768.0,84766.0,0.00868383]
[1744893563100,0.3808,84768.0,84766.0,0.00868383]
[1744893563296,0.1180062,84765.0,84764.0,0.01332718]
[1744893563492,0.1180076,84764.0,84763.0,0.04247695]
[1744893563696,0.2273076,84764.0,84763.0,0.00017695]
[1744893564204,0.4973076,84764.0,84763.0,0.00017695]
[1744893564498,0.2273076,84764.0,84763.0,0.00915363]
[1744893564699,0.2283076,84764.0,84763.0,0.00017695]
[1744893565298,0.2283076,84764.0,84756.0,0.07536]
[1744893565299,0.0590059,84761.0,84756.0,0.07536]
[1744893565498,0.4788173,84757.0,84756.0,0.07536]
[1744893565703,0.1180215,84754.0,84753.0,0.0423]
[1744893565904,0.1380215,84754.0,84753.0,0.0423]
[1744893566092,0.2271215,84754.0,84753.0,0.0423]
[1744893566295,0.2271215,84754.0,84753.0,0.05523983]
[1744893566906,0.2271215,84754.0,84753.0,0.18209246]
[1744893567201,0.2281215,84754.0,84753.0,0.06406956]
[1744893568994,0.2281215,84754.0,84753.0,0.00882973]
[1744893569195,0.1180271,84750.0,84749.0,0.045]
[1744893569406,0.1380271,84750.0,84749.0,0.045]
[1744893569705,0.2247271,84750.0,84749.0,0.05836364]
[1744893570101,0.1067,84750.0,84714.0,0.0590385]
[1744893570309,0.1180452,84737.0,84736.0,0.1630456]
[1744893570509,0.1380452,84737.0,84736.0,0.21920645]
[1744893570806,0.1380452,84737.0,84736.0,0.17610645]
[1744893570994,0.1380452,84737.0,84736.0,0.22801276]
[1744893572908,0.1390452,84737.0,84736.0,0.30341276]
[1744893574411,0.1390452,84737.0,84736.0,0.22801276]
[1744893574609,0.1390452,84737.0,84736.0,0.30341276]
[1744893575406,0.1390452,84737.0,84736.0,0.26031276]
[1744893575610,0.2285452,84737.0,84736.0,0.06686716]
[1744893575907,0.2285452,84737.0,84736.0,0.18491376]
[1744893576613,0.1390452,84737.0,84736.0,0.23041376]
[1744893577014,0.11814481,84743.0,84742.0,0.1180382]
[1744893577215,0.13814481,84743.0,84742.0,0.1180382]
[1744893577514,0.13814481,84743.0,84742.0,0.2517382]
[1744893578217,0.02010801,84743.0,84742.0,0.2517382]
[1744893578607,0.02,84743.0,84742.0,0.2517382]
[1744893578807,0.02008,84743.0,84742.0,0.2517382]
[1744893579202,0.1381168,84743.0,84742.0,0.2517382]
[1744893579616,0.1391168,84743.0,84742.0,0.2517382]
[1744893580703,0.02108,84743.0,84742.0,0.2517382]
[1744893581818,0.1391168,84743.0,84742.0,0.2517382]
[1744893582211,0.02108,84743.0,84742.0,0.2517382]
[1744893583812,0.1391168,84743.0,84742.0,0.2517382]
[1744893584408,0.02108,84743.0,84742.0,0.2517382]
[1744893586619,0.00037379,84758.0,84748.0,0.0590149]
[1744893586817,0.00037379,84758.0,84757.0,0.1180173]
[1744893587120,0.00025695,84758.0,84757.0,0.2510173]
[1744893588707,0.00425695,84758.0,84757.0,0.2510173]
[1744893589216,0.00525695,84758.0,84757.0,0.2510173]
[1744893589818,0.00025695,84758.0,84757.0,0.2510173]
[1744893591620,0.08675695,84758.0,84757.0,0.2510173]
[1744893592823,0.20477285,84758.0,84757.0,0.2510173]
[1744893593023,0.20577285,84758.0,84757.0,0.2510173]
[1744893593327,0.08775695,84758.0,84757.0,0.2510173]
[1744893594529,0.20577285,84758.0,84757.0,0.2510173]
[1744893595426,0.20577285,84758.0,84757.0,0.2057173]
[1744893595727,0.20577285,84758.0,84757.0,0.1620173]
[1744893596126,0.20477285,84758.0,84757.0,0.1620173]
[1744893596328,0.20577285,84758.0,84757.0,0.1620173]
[1744893598427,0.20577285,84758.0,84757.0,0.2373773]
[1744893599330,0.20477285,84758.0,84757.0,0.2373773]
[1744893599630,0.20577285,84758.0,84757.0,0.2373773]
[1744893602629,0.20677285,84758.0,84757.0,0.2373773]
[1744893603022,0.20577285,84758.0,84757.0,0.2373773]
[1744893606136,0.20477285,84758.0,84757.0,0.2373773]
[1744893606325,0.08875695,84758.0,84757.0,0.2373773]
[1744893606627,0.04485695,84758.0,84757.0,0.2373773]
[1744893606831,0.0898,84764.0,84763.0,0.118009]
[1744893607039,0.005,84774.0,84773.0,0.1179951]
[1744893607225,0.005,84774.0,84773.0,0.1611951]
[1744893607531,0.1229937,84774.0,84773.0,0.1611951]
[1744893607835,0.1681737,84774.0,84773.0,0.1611951]
[1744893608628,0.1731737,84774.0,84773.0,0.1611951]
[1744893608837,0.1731737,84774.0,84773.0,0.17772997]
[1744893609335,0.1721737,84774.0,84773.0,0.17772997]
[1744893609739,0.1731737,84774.0,84773.0,0.17772997]
[1744893610236,0.2191737,84774.0,84773.0,0.17772997]
[1744893611540,0.1179951,84773.0,84772.0,0.07536]
[1744893611738,0.1179992,84770.0,84769.0,0.2213994]
[1744893612222,0.2061992,84770.0,84769.0,0.2213994]
[1744893612425,0.2061992,84770.0,84769.0,0.23764009]
[1744893612937,0.2091992,84770.0,84769.0,0.23864009]
[1744893613640,0.2091992,84770.0,84769.0,0.13524129]
[1744893614842,0.2091992,84770.0,84769.0,0.001]
[1744893615533,0.2091992,84770.0,84769.0,0.1190006]
[1744893616542,0.2091992,84770.0,84769.0,0.1354917]
[1744893618742,0.2091992,84770.0,84769.0,0.1815917]
[1744893619140,0.0476,84770.0,84769.0,0.1815917]
[1744893619344,0.003,84770.0,84769.0,0.1815917]
[1744893619555,0.003,84770.0,84769.0,0.2262917]
[1744893620237,0.00308,84770.0,84769.0,0.2262917]
[1744893620437,0.1179846,84781.0,84774.0,0.0589962]
[1744893620635,0.1640846,84781.0,84780.0,0.1179853]
[1744893621239,0.1640846,84781.0,84780.0,0.2075853]
[1744893621445,0.00017695,84782.0,84781.0,0.1179839]
[1744893621645,0.00017695,84782.0,84781.0,0.2075839]
[1744893622136,0.00025695,84782.0,84781.0,0.2075839]
[1744893622534,0.48064515,84790.0,84789.0,0.1179728]
[1744893622742,0.11984515,84790.0,84789.0,0.1179728]
[1744893622944,0.14958013,84796.0,84792.0,0.0589836]
[1744893623146,0.14958013,84796.0,84795.0,0.1179645]
[1744893623642,8e-05,84796.0,84795.0,0.25]
[1744893623845,0.00017695,84804.0,84803.0,0.1179533]
[1744893624442,0.11812885,84804.0,84803.0,0.1179533]
[1744893624642,0.11820885,84804.0,84803.0,0.1179533]
[1744893625145,0.00025695,84804.0,84803.0,0.1179533]
[1744893625648,0.00325695,84804.0,84803.0,0.1179533]
[1744893626038,0.01025695,84804.0,84803.0,0.1189533]
[1744893627440,0.12820885,84804.0,84803.0,0.1189533]
[1744893627642,0.17120885,84804.0,84803.0,0.1189533]
[1744893627849,0.17120885,84804.0,84803.0,0.1942333]
[1744893630248,0.05325695,84804.0,84803.0,0.1942333]
[1744893630444,0.01025695,84804.0,84803.0,0.1942333]
[1744893630949,0.01017695,84804.0,84803.0,0.1942333]
[1744893631149,0.01025695,84804.0,84803.0,0.1942333]
[1744893631350,0.01017695,84804.0,84803.0,0.1942333]
[1744893631549,0.01025695,84804.0,84803.0,0.1942333]
[1744893631751,0.00010801,84813.0,84810.0,0.1769119]
[1744893631949,0.00010801,84813.0,84812.0,0.1179408]
[1744893632344,0.00010801,84813.0,84812.0,0.1612408]
[1744893632544,0.1179333,84818.0,84817.0,0.1179339]
[1744893632747,0.058965,84820.0,84819.0,0.1179311]
[1744893633239,0.058965,84820.0,84819.0,0.1079311]
[1744893633443,0.058965,84820.0,84819.0,0.1954311]
[1744893634152,0.058965,84820.0,84819.0,0.1524311]
[1744893634355,0.105965,84820.0,84819.0,0.1688116]
[1744893634653,0.105965,84820.0,84819.0,0.1648116]
[1744893634851,0.105965,84820.0,84819.0,0.2360916]
[1744893635244,0.108965,84820.0,84819.0,0.2360916]
[1744893635444,0.158965,84820.0,84819.0,0.2360916]
[1744893635649,0.007,84820.0,84819.0,0.2360916]
[1744893635839,0.007,84820.0,84819.0,0.2790916]
[1744893636044,0.00708,84820.0,84819.0,0.2790916]
[1744893636443,0.007,84820.0,84819.0,0.2790916]
[1744893636644,0.00708,84820.0,84819.0,0.2790916]
[1744893637943,0.00608,84820.0,84819.0,0.2790916]
[1744893638156,0.006,84820.0,84819.0,0.2790916]
[1744893638757,0.00608,84820.0,84819.0,0.2790916]
[1744893639657,0.00010801,84828.0,84824.0,0.058962]
[1744893639960,0.00014581,84831.0,84830.0,0.1179158]
[1744893640348,0.00014581,84831.0,84830.0,0.2056158]
[1744893640549,0.0459,84833.0,84832.0,0.117913]
[1744893640853,0.0459,84833.0,84832.0,0.193193]
[1744893641052,0.04598,84833.0,84832.0,0.276893]
[1744893641648,0.04598,84833.0,84832.0,0.278893]
[1744893641849,0.04698,84833.0,84832.0,0.278893]
[1744893644862,0.00108,84833.0,84832.0,0.278893]
[1744893645763,0.1189916,84833.0,84832.0,0.233693]